[Event "12th WLC Weekend 2022"]
[Site "Eindhoven"]
[Date "2022.05.13"]
[Round "1.16"]
[White "Roebers, Jan"]
[Black "Weijers, Ralf"]
[Result "1/2-1/2"]
[ECO "B07"]
[WhiteElo "2126"]
[BlackElo "1857"]
[Annotator "TA"]
[PlyCount "56"]
[EventDate "2022.05.13"]
[EventType "swiss"]
[EventCountry "NED"]
[SourceTitle "playchess.com"]
[Source "ChessBase"]
[SourceQuality "1"]
[TimeControl "5400+30"]

{[%evp 13,56,39,41,33,71,57,82,89,88,87,80,48,31,34,39,34,283,264,254,122,181,183,232,248,228,226,294,218,485,468,460,467,417,244,241,164,172,136,172,166,141,0,0,-70,-50]} 1. e4 {[%emt 0:00:12]} d6 {[%emt 0:00:04]} 2. Nc3 {[%emt 0:00:24]} Nf6 {[%emt 0:00:15]} 3. f4 {[%emt 0:02:18]} Nbd7 {[%emt 0:00:29]} 4. Nf3 {[%emt 0:01:16]} e5 {[%emt 0:01:09]} 5. d4 {[%emt 0:04:52]} exd4 {[%emt 0:01:54]} 6. Qxd4 {[%emt 0:03:26]} c6 {[%emt 0:02:31]} 7. Be3 {[%emt 0:05:13]} d5 {[%emt 0:01:32]} 8. e5 {[%emt 0:12:33] B07: Pirc Defence: Miscellaneous Systems.} Bc5 {[%emt 0:04:26]} 9. Qd2 {[%emt 0:02:56] White is more active.} Ng4 {[%emt 0:02:59]} 10. Bxc5 {[%emt 0:01:55] White is better.} Nxc5 {[%emt 0:00:03]} 11. h3 {[%emt 0:03:22]} Nh6 {[%emt 0:04:09]} 12. g4 {[%emt 0:00:57] [#]} f5 $146 {[%emt 0:11:28]} ({Predecessor:} 12... b5 13. b4 Nd7 14. a4 bxa4 15. b5 Bb7 16. bxc6 Bxc6 17. Nd4 Qh4+ 18. Qf2 Qxf2+ 19. Kxf2 {1-0 (42) Grieve,H (196)-Klingher,D (200) Daventry 2017}) 13. exf6 {[%emt 0:05:51]} Qxf6 {[%emt 0:01:31]} 14. O-O-O $36 {[%emt 0:02:52][%mdl 2048] White has some pressure.} Nf7 $2 {[%emt 0:07:57]} (14... O-O $14) 15. Re1+ $18 {[%emt 0:04:12]} (15. g5 Qd6 $16) 15... Kd8 {[%emt 0:02:53] [#]} 16. Bg2 {[%emt 0:09:15]} (16. Nxd5 $1 $18 {[%mdl 512] is the precise move to win.} cxd5 17. Qxd5+ Nd7 18. f5 (18. Nd4 Kc7 $16)) 16... Qd6 {[%emt 0:04:54]} (16... Bd7 $16) 17. f5 {[%emt 0:07:40]} h6 {[%emt 0:05:55]} (17... Bd7 {was necessary.} 18. Kb1 Re8) 18. Qd4 {[%emt 0:03:00]} Rg8 {[%emt 0:03:27]} 19. Re2 {[%emt 0:02:54]} Bd7 {[%emt 0:05:28]} 20. Rhe1 {[%emt 0:00:24][%cal Oe2e7] Strongly threatening Re7!} h5 $2 {[%emt 0:04:32]} (20... Kc7 {is a better defense.} 21. Re7 Raf8) 21. Re7 {[%emt 0:01:39]} hxg4 {[%emt 0:04:47]} 22. hxg4 {[%emt 0:00:07]} ({Weaker is} 22. Rxf7 gxf3 23. Bxf3 Rf8 24. Rxf8+ (24. Qxg7 Rxf7 25. Qxf7 Kc7 $14) (24. Rxg7 Bxf5 25. Qh4+ Kc8 $18) 24... Qxf8 $18) 22... Nh6 {[%emt 0:02:13]} 23. Rxg7 {[%emt 0:02:24] The board is on fire.} (23. Nd2 $142 {[%cal Od2c4] Nc4! is the strong threat.} b5 24. b4) 23... Kc7 {[%emt 0:02:54]} 24. Rxg8 {[%emt 0:00:43]} Rxg8 {[%emt 0:00:31]} 25. Ne5 {[%emt 0:02:28] Black must now prevent Re2.} Nxf5 {[%emt 0:02:19]} 26. gxf5 {[%emt 0:00:26]} Rxg2 {[%emt 0:00:08]} 27. Nxd7 {[%emt 0:00:35]} (27. Nf7 $16 Qf8 28. Qf4+ Kb6 29. Nd6) 27... Nxd7 $11 {[%emt 0:02:51]} 28. Qh4 {[%emt 0:05:03]} (28. Qxa7 $11 Qf4+ 29. Kb1) 28... Qh2 {[%emt 0:03:48] Weighted Error Value: White=0.38/Black=0.45} (28... Rh2 $5 {[%cal Rh2h4]} 29. Qa4 a6 $17) 1/2-1/2

[Event "12th WLC Weekend 2022"]
[Site "Eindhoven"]
[Date "2022.05.13"]
[Round "1.17"]
[White "Kurt, Sascha"]
[Black "Van Doren, Bas"]
[Result "0-1"]
[ECO "B42"]
[WhiteElo "1751"]
[BlackElo "2102"]
[Annotator "TA"]
[PlyCount "64"]
[EventDate "2022.05.13"]
[EventType "swiss"]
[EventCountry "NED"]
[SourceTitle "playchess.com"]
[Source "ChessBase"]
[SourceQuality "1"]
[TimeControl "5400+30"]

{[%evp 13,63,26,51,7,11,-19,2,-25,0,-16,-23,-8,0,-14,0,-93,-110,-138,-149,-216,-222,-1492,-1484,-1706,-1688,-1685,-1675,-1658,-1617,-1580,-1621,-1095,-1054,-29992,-29993,-29993,-1192,-1106,-779,-766,-749,-1158,-1135,-29982,-3712,-3150,-1241,-29997,-29998,-29998,-29999,-29999]} 1. e4 {[%emt 0:00:03]} c5 {[%emt 0:00:05]} 2. Nf3 {[%emt 0:00:07][%cal Bg1f3,Bf3d4,Bd4b3][%mdl 32]} e6 {[%emt 0:00:07]} 3. d4 {[%emt 0:00:04]} cxd4 {[%emt 0:00:05]} 4. Nxd4 {[%emt 0:00:05]} a6 {[%emt 0:00:07]} 5. Bd3 {[%emt 0:00:14]} Bc5 {[%emt 0:00:31]} 6. Nb3 {[%emt 0:00:33]} Ba7 {[%emt 0:00:20]} 7. O-O {[%emt 0:00:27]} Nc6 {[%emt 0:02:28]} 8. Bf4 {[%emt 0:06:18] B42: Sicilian: Kan Variation: 5 Bd3.} d6 {[%emt 0:03:23] [#]} 9. a4 $146 {[%emt 0:05:16]} ({Predecessor:} 9. Qd2 Nf6 10. Nc3 h6 11. Be2 e5 12. Be3 Bxe3 13. Qxe3 Be6 14. Rad1 Qc7 15. Rd2 O-O {½-½ (39) Luther,T (2480)-Bezold,M (2490) Bad Wildbad 1993}) 9... Nge7 {[%emt 0:04:33]} 10. Kh1 {[%emt 0:03:16] The position is equal.} Ng6 {[%emt 0:05:58]} 11. Bg3 {[%emt 0:00:20]} e5 {[%emt 0:07:56][%cal Be6e5,Be5f4][%mdl 32]} 12. Bc4 {[%emt 0:03:43]} h5 {[%emt 0:07:18] aiming for ...h4.} 13. h3 {[%emt 0:02:37]} Nf4 {[%emt 0:02:41]} 14. Bxf4 {[%emt 0:09:19]} (14. Nc3 $11 {remains equal.}) 14... exf4 $17 {[%emt 0:00:08] Black keeps a firm grip on the game.} 15. N1d2 {[%emt 0:16:30]} Ne5 $1 {[%emt 0:02:36][%cal Oc8h3,Bc6e5,Be5g4,Bg4e3][%mdl 32] ...Bxh3! is the strong threat.} 16. Be2 {[%emt 0:05:54] [#]} (16. Qe2 $17 {might work better.}) 16... Bxh3 $1 $19 {[%emt 0:23:29]} 17. gxh3 {[%emt 0:01:15]} (17. Nf3 Bg4 18. Nbd4) 17... Qh4 $1 {[%emt 0:01:25][%csl LRf2,LRh3]} 18. Kh2 {[%emt 0:04:27]} Ng4+ {[%emt 0:02:16]} ({Inferior is} 18... Bxf2 19. Rxf2 Qxf2+ 20. Kh1 $17) 19. Kg2 {[%emt 0:01:48] [#]} Bxf2 $1 {[%emt 0:03:05]} 20. Bb5+ {[%emt 0:01:45]} axb5 {[%emt 0:01:14]} 21. Qf3 {[%emt 0:00:21]} Ne3+ {[%emt 0:03:28]} 22. Kh1 {[%emt 0:00:46]} Bg3 {[%emt 0:03:00]} 23. Qe2 {[%emt 0:02:19]} Qxh3+ {[%emt 0:00:06]} 24. Kg1 {[%emt 0:00:13]} Kf8 {[%emt 0:01:35]} (24... Rh6 $142 25. Qxb5+ Kf8 26. Qe8+ Rxe8 27. Rf2 Rg6 28. Nf3 Bxf2+ 29. Kxf2 Rg2+ 30. Ke1 Qg3#) 25. Nf3 {[%emt 0:01:58]} Nxf1 {[%emt 0:00:36]} 26. Rxf1 {[%emt 0:00:12]} Rh6 {[%emt 0:00:42] ( -> ...Rg6)} 27. Ng5 {[%emt 0:02:49]} Qg4 {[%emt 0:00:18]} 28. Qxb5 {[%emt 0:00:40]} Bh4+ {[%emt 0:01:05]} (28... Be1+ $142 29. Kh1 Qh4+ 30. Kg2 Rg6 31. Rxe1 Qxe1 32. Qd5 f3+ 33. Kh3 Qf1+ 34. Kg3 {[#]} Rxg5+ $1 {[%mdl 512]} 35. Qxg5 Qg1+ 36. Kf4 f2 37. Qb5 h4 38. Kf3 f1=Q+ 39. Qxf1 Qxf1+ 40. Ke3 h3 41. Nd2 Qe1+ 42. Kd3 h2 43. Nf3 Qd1+ 44. Nd2 h1=Q 45. Kc3 Qh3+ 46. Nf3 Qc8+ 47. Kb4 Qdxc2 48. Nh4 Qxa4#) 29. Kh2 {[%emt 0:00:23]} Qxg5 {[%emt 0:00:19]} 30. Qxb7 {[%emt 0:00:16]} Qg3+ {[%emt 0:00:07] Black mates.} 31. Kh1 {[%emt 0:00:08]} Qh3+ {[%emt 0:00:02]} 32. Kg1 {[%emt 0:00:12]} Rg6# {[%emt 0:00:34] Weighted Error Value: White=0.84/Black=0.54} 0-1

[Event "12th WLC Weekend 2022"]
[Site "Eindhoven"]
[Date "2022.05.13"]
[Round "1.18"]
[White "Slagboom, Leandro"]
[Black "Klapwijk, Leo"]
[Result "1-0"]
[ECO "A15"]
[WhiteElo "1997"]
[BlackElo "1828"]
[Annotator "TA"]
[PlyCount "69"]
[EventDate "2022.05.13"]
[EventType "swiss"]
[EventCountry "NED"]
[SourceTitle "playchess.com"]
[Source "ChessBase"]
[SourceQuality "1"]
[TimeControl "5400+30"]

{[%evp 11,69,32,32,34,64,64,64,46,70,49,111,112,124,128,181,176,196,189,268,231,295,288,392,373,396,387,383,350,379,355,368,348,493,507,507,444,504,505,506,504,591,590,595,572,626,629,810,781,995,997,1089,1099,1134,1115,1795,1732,1760,1533,29987,29988]} 1. Nf3 {[%emt 0:00:04]} Nf6 {[%emt 0:00:38]} 2. c4 {[%emt 0:00:07]} g6 {[%emt 0:01:22]} 3. g3 {[%emt 0:00:16]} Bg7 {[%emt 0:01:19]} 4. Bg2 {[%emt 0:00:06]} Nc6 {[%emt 0:00:31]} 5. d4 {[%emt 0:00:52]} e6 {[%emt 0:06:32]} 6. O-O {[%emt 0:02:31]} O-O {[%emt 0:02:22]} 7. Nc3 {[%emt 0:00:28] [#] A15: English Opening: 1...Nf6.} Re8 $146 {[%emt 0:01:19]} ({Predecessor:} 7... d6 8. e4 a5 9. h3 Bd7 10. e5 Ne8 11. Bg5 f6 12. exf6 Bxf6 13. Be3 Bg7 14. Qd2 Nf6 15. Rfe1 Nb4 16. Rad1 {0-1 (89) Tarun,K (2325)-Manolache,M (2485) Chess.com INT 2022}) 8. e4 {[%emt 0:00:57]} d5 {[%emt 0:01:25]} 9. e5 {[%emt 0:04:09] [#] Strongly threatening Bg5. White is slightly better.} Ne4 {[%emt 0:00:10] Against Bg5} 10. Qe2 {[%emt 0:05:28]} f5 {[%emt 0:03:00]} (10... Nxc3 $14 11. bxc3 b6) 11. exf6 $16 {[%emt 0:01:00]} Nxf6 {[%emt 0:07:20]} 12. Bg5 {[%emt 0:06:21]} a6 {[%emt 0:01:44]} (12... h6 $16) 13. Rfe1 $36 {[%emt 0:04:02][%mdl 2048] Black is under strong pressure.} dxc4 {[%emt 0:03:48]} 14. Qxc4 {[%emt 0:03:10]} Rb8 {[%emt 0:02:15]} (14... Qd7 $142 15. Bxf6 Bxf6) 15. Rad1 {[%emt 0:05:17]} Na5 {[%emt 0:01:40]} 16. Qa4 {[%emt 0:06:29]} c6 {[%emt 0:01:45]} 17. Ne4 {[%emt 0:08:28]} Rf8 {[%emt 0:02:17]} 18. Ne5 {[%emt 0:04:29] [#] Ng4 is the strong threat.} b5 {[%emt 0:03:25]} 19. Qc2 {[%emt 0:04:54] Hoping for Ng4.} Qc7 {[%emt 0:05:28]} 20. b4 {[%emt 0:05:30]} Nc4 {[%emt 0:10:16]} 21. Nxc4 {[%emt 0:00:58]} bxc4 {[%emt 0:00:23]} (21... Nxe4 $142 22. Rxe4 (22. Bxe4 bxc4 23. Qxc4 Qd6 $18) 22... bxc4) 22. Bf4 {[%emt 0:01:30]} Qb6 {[%emt 0:00:37]} 23. Bxb8 {[%emt 0:00:18]} Qxb8 {[%emt 0:00:19]} 24. Nxf6+ {[%emt 0:00:35]} Bxf6 {[%emt 0:01:51]} 25. Qxc4 {[%emt 0:00:24]} a5 {[%emt 0:03:05]} 26. bxa5 {[%emt 0:00:54][%cal Bb4a5,Ba5a6,Ba6a7][%mdl 32]} Qa7 {[%emt 0:00:09]} 27. Qc5 {[%emt 0:02:59]} Qf7 {[%emt 0:02:52]} 28. f4 {[%emt 0:04:20]} Bd7 {[%emt 0:01:46]} 29. a6 {[%emt 0:01:33]} Be7 {[%emt 0:02:27]} 30. Qb6 {[%emt 0:02:00]} Rc8 {[%emt 0:05:32]} 31. a7 {[%emt 0:00:33]} Qe8 {[%emt 0:00:37]} 32. Rc1 {[%emt 0:03:39][%cal Og2c6] aiming for Bxc6!} Bd6 {[%emt 0:00:56]} 33. d5 {[%emt 0:01:34][%cal Bd4d5,Bd5c6][%mdl 32]} Bc7 {[%emt 0:03:09]} 34. Qb7 {[%emt 0:00:48][%cal Rd5c6]} Ba5 {[%emt 0:01:18]} 35. dxc6 {[%emt 0:01:29] Black got outplayed after the opening.  Weighted Error Value: White=0.06 (flawless) /Black=0.40} 1-0

[Event "12th WLC Weekend 2022"]
[Site "Eindhoven"]
[Date "2022.05.13"]
[Round "1.19"]
[White "Lind, Jacco"]
[Black "Margarido, Jose Miguel Teixeira"]
[Result "0-1"]
[ECO "B46"]
[WhiteElo "1801"]
[BlackElo "2127"]
[Annotator "TA"]
[PlyCount "98"]
[EventDate "2022.05.13"]
[EventType "swiss"]
[EventCountry "NED"]
[SourceTitle "playchess.com"]
[Source "ChessBase"]
[SourceQuality "1"]
[TimeControl "5400+30"]

{[%evp 9,98,21,41,12,23,7,16,0,0,-6,14,-22,-30,-28,-20,-25,-32,-18,-22,-82,0,-100,-52,-45,-48,-70,-43,-42,0,-53,-41,-139,-118,-135,-107,-95,0,-12,0,-8,0,-127,-59,-63,-64,-63,-32,-35,-35,-59,-29,0,124,117,117,0,0,-20,-6,-214,-209,-198,-202,-220,-212,-366,-361,-358,-348,-660,-164,-151,-154,-165,-122,-121,-34,-451,-427,-452,-452,-452,-445,-449,-402,-449,-447,-432,-418,-424,-367]} 1. e4 {[%emt 0:00:03]} c5 {[%emt 0:00:08]} 2. Nf3 {[%emt 0:00:09]} e6 {[%emt 0:00:05]} 3. d4 {[%emt 0:00:07]} cxd4 {[%emt 0:00:03]} 4. Nxd4 {[%emt 0:00:09]} Nc6 {[%emt 0:00:15]} 5. Nc3 {[%emt 0:00:29]} a6 {[%emt 0:00:06]} 6. g4 {[%emt 0:02:50] B46: Sicilian: Taimanov: 5 Nc3 a6.} Qc7 {[%emt 0:03:49]} 7. a3 {[%emt 0:03:16]} h6 {[%emt 0:13:01]} 8. Bg2 {[%emt 0:02:40] The position is equal.} Nf6 {[%emt 0:02:15]} 9. h3 {[%emt 0:00:05] [#]} Be7 $146 {[%emt 0:01:05]} ({Predecessor:} 9... b5 10. O-O Bb7 11. Re1 Ne5 12. Bf4 d6 13. Bc1 Be7 14. f4 Nc4 15. g5 hxg5 16. fxg5 {0-1 (42) Ajanski,J-Velikov,P Sofia 1971}) 10. Nde2 {[%emt 0:04:16]} d6 {[%emt 0:03:15]} 11. O-O $1 {[%emt 0:00:49]} b5 {[%emt 0:01:42]} (11... O-O {seems wilder.} 12. f4 b5 13. Qe1 b4) 12. Be3 {[%emt 0:02:25]} (12. Qe1 {keeps more tension.} O-O 13. f4 b4 14. axb4 Nxb4 15. Qd1) 12... Bb7 {[%emt 0:00:24]} 13. f4 {[%emt 0:01:33]} O-O {[%emt 0:13:13]} 14. Ng3 {[%emt 0:12:23]} (14. Qe1 $11) 14... Rac8 {[%emt 0:03:07]} (14... Na5 $17) 15. Qe2 {[%emt 0:02:28]} (15. h4 $1 $11) 15... Nh7 {[%emt 0:20:09]} (15... Na5 $17 16. g5 hxg5 17. fxg5 Nh7) 16. Qf2 $15 {[%emt 0:05:43]} Bh4 {[%emt 0:03:56]} 17. Nce2 {[%emt 0:06:07]} Qe7 {[%emt 0:09:14]} 18. Qe1 {[%emt 0:08:32]} Qc7 {[%emt 0:05:58]} 19. c3 {[%emt 0:01:07]} ({White should try} 19. Qf2 $11) 19... Na5 {[%emt 0:01:03]} 20. Rd1 {[%emt 0:01:04]} (20. Bf2 $15) 20... Nc4 $17 {[%emt 0:03:33][%csl LRb2,LRe3]} 21. Bc1 {[%emt 0:00:16]} Rfe8 {[%emt 0:12:06] Black is more active.} 22. Rd3 {[%emt 0:04:35]} Qe7 {[%emt 0:00:00]} (22... e5 $17 {White must now prevent ...exf4.} 23. b3 Qc5+ 24. Kh2 exf4 25. Bxf4 Ne5) 23. Qd1 $11 {[%emt 0:01:30]} Red8 {[%emt 0:00:00]} 24. Nd4 {[%emt 0:08:23][%cal Og3f5]} Qc7 {[%emt 0:01:50]} 25. f5 {[%emt 0:03:17]} (25. b3 $11 {keeps the balance.}) 25... Re8 {[%emt 0:01:28]} (25... e5 $17 26. Nde2 Nf6) 26. Nh5 $15 {[%emt 0:02:36]} Ne5 {[%emt 0:00:49]} 27. Re3 {[%emt 0:01:11]} Nf6 {[%emt 0:00:49]} 28. Nxf6+ {[%emt 0:03:44]} Bxf6 {[%emt 0:00:07]} 29. g5 {[%emt 0:00:40]} hxg5 {[%emt 0:00:51]} 30. Rg3 {[%emt 0:00:11]} Qe7 {[%emt 0:00:35]} (30... d5 $11 {remains equal.} 31. fxe6 dxe4) 31. Qh5 $1 $16 {[%emt 0:00:15][%cal Rc1g5]} g6 {[%emt 0:00:29] [#]} (31... exf5 $2 32. Nxf5 Qf8 33. Bxg5 Bxg5 34. Rxg5 $18) 32. fxg6 {[%emt 0:00:52]} (32. Bxg5 $1 $16 gxh5 33. Bxf6+ Kf8 34. Bxe7+ Kxe7 35. fxe6) 32... fxg6 $11 {[%emt 0:00:03]} 33. Qh6 {[%emt 0:03:49][%cal Rc1g5]} Qg7 $36 {[%emt 0:00:48][%mdl 2048] White is under pressure.} 34. Bxg5 {[%emt 0:00:58]} (34. Qxg7+ $11 Kxg7 35. Bxg5 Bxg5 36. Rxg5) 34... Qxh6 $19 {[%emt 0:00:41]} 35. Bxh6 {[%emt 0:00:06]} Bh4 {[%emt 0:00:24]} 36. Re3 {[%emt 0:00:48] [#]} Nf7 $1 {[%emt 0:00:30]} 37. Nf3 $2 {[%emt 0:00:41] [#]} (37. Rf4 Bd8 38. Rxf7 Kxf7 39. Rf3+ Kg8 40. Rd3) 37... Bd8 $1 {[%emt 0:00:30]} 38. Bf4 {[%emt 0:01:53]} Bb6 {[%emt 0:00:35][%csl LRe3,LRe4] aiming for ...e5.} 39. Ng5 $2 {[%emt 0:01:22]} (39. Rfe1) 39... Bxe3+ $2 {[%emt 0:00:26]} (39... e5 40. Nxf7 exf4 41. Nxd6 fxe3 42. Nxc8 Bxc8) 40. Bxe3 {[%emt 0:00:06]} Nxg5 {[%emt 0:00:31]} 41. Bxg5 {[%emt 0:00:16]} d5 {[%emt 0:00:29][%cal Bd6d5,Bd5d4][%mdl 32]} 42. e5 {[%emt 0:00:19]} Rc4 {[%emt 0:00:34]} (42... Rf8 $17 {Threatens to win with ...Rxf1+.} 43. Bf6 Rf7) 43. Rf3 $2 {[%emt 0:01:24][%mdl 8192]} ({Better is} 43. Rf6 $15) 43... d4 {[%emt 0:00:32]} 44. Rf6 {[%emt 0:00:36]} Bxg2 {[%emt 0:00:20]} 45. Kxg2 {[%emt 0:00:03]} dxc3 {[%emt 0:00:38]} 46. Rxg6+ {[%emt 0:00:08]} Kh7 {[%emt 0:00:14]} 47. Rh6+ {[%emt 0:00:56]} Kg7 {[%emt 0:00:00]} 48. bxc3 {[%emt 0:00:09]} Re4 {[%emt 0:01:15]} ({Avoid the trap} 48... Rxc3 $2 49. h4 $19) 49. Rh5 {[%emt 0:01:38]} Kg6 {[%emt 0:00:27] Weighted Error Value: White=0.54/Black=0.34} 0-1

[Event "12th WLC Weekend 2022"]
[Site "Eindhoven"]
[Date "2022.05.13"]
[Round "1.21"]
[White "Boeren, Jurriaan"]
[Black "Coenen, Eduard"]
[Result "1-0"]
[ECO "B06"]
[WhiteElo "1778"]
[BlackElo "2030"]
[Annotator "TA"]
[PlyCount "137"]
[EventDate "2022.05.13"]
[EventType "swiss"]
[EventCountry "NED"]
[SourceTitle "playchess.com"]
[Source "ChessBase"]
[SourceQuality "1"]
[TimeControl "5400+30"]

{[%evp 11,137,32,60,8,9,14,12,19,39,-18,2,0,7,-130,-102,-129,-136,-142,-131,-142,-125,-272,-250,-234,-268,-247,-106,-298,-245,-253,55,60,55,-352,720,-356,-364,-370,-364,-364,-371,-366,-156,-354,-304,-470,0,0,0,0,0,0,1,0,22,0,0,0,43,33,43,35,27,41,54,48,79,0,0,0,72,13,117,108,138,145,148,124,152,66,165,166,242,252,267,241,285,251,277,259,278,276,250,214,285,222,395,348,1037,1007,836,954,951,937,1512,1475,2472,2347,2216,1881,7120,6586,8188,6215,5193,2562,6394,5015,29968,29969,29980,29981,29981,29980,29985,29986,29987,29987]} 1. e4 {[%emt 0:00:03]} g6 {[%emt 0:00:12]} 2. d4 {[%emt 0:00:04]} Bg7 {[%emt 0:00:06]} 3. Nc3 {[%emt 0:00:10]} a6 {[%emt 0:00:06]} 4. Be3 {[%emt 0:00:23]} d6 {[%emt 0:00:23]} 5. Qd2 {[%emt 0:01:07]} Nd7 {[%emt 0:00:39]} 6. a4 {[%emt 0:04:19]} b6 {[%emt 0:01:04]} 7. f4 {[%emt 0:00:52] B06: Modern Defence.} (7. h4 $14) 7... Bb7 $11 {[%emt 0:02:41]} 8. Nf3 {[%emt 0:00:51]} e6 {[%emt 0:02:38]} 9. Bd3 {[%emt 0:03:26] The position is equal.} Ngf6 {[%emt 0:01:44]} 10. h3 {[%emt 0:01:37]} (10. f5 $14) 10... c5 {[%emt 0:01:52] [#]} 11. O-O $146 {[%emt 0:18:01]} ({Predecessor:} 11. e5 cxd4 12. Bxd4 Nh5 13. Be4 d5 14. Bd3 Ng3 15. Rg1 Nc5 16. Qe3 Rc8 17. Kf2 Nxd3+ 18. cxd3 {½-½ (69) Khotenashvili,B (2484)-Paehtz,E (2468) Tbilisi 2018}) 11... O-O {[%emt 0:05:01]} 12. f5 {[%emt 0:05:34]} (12. e5 $11 Nh5 13. Be4 (13. exd6 $2 Bxf3 14. dxc5 Bc6 $19)) 12... cxd4 {[%emt 0:16:09]} 13. Nxd4 {[%emt 0:02:37]} gxf5 {[%emt 0:01:11]} 14. exf5 {[%emt 0:02:12]} e5 {[%emt 0:01:25]} 15. Nb3 {[%emt 0:02:45]} d5 $1 {[%emt 0:04:48][%cal Bd6d5,Bd5d4][%mdl 32]} 16. Bh6 {[%emt 0:00:40]} (16. Bg5 $17) 16... Bxh6 $1 $19 {[%emt 0:04:06]} 17. Qxh6 {[%emt 0:00:09]} d4 $1 {[%emt 0:03:28]} 18. Nd1 {[%emt 0:10:46]} Rc8 {[%emt 0:01:26]} (18... Kh8 $1 $19 {Hoping for ...Rg8.} 19. Be2 Rg8) 19. g4 $2 {[%emt 0:12:50]} (19. Nf2 $17) 19... e4 {[%emt 0:03:41]} 20. Be2 {[%emt 0:01:37]} Rxc2 $2 {[%emt 0:01:44]} ({Don't go for} 20... Ne5 $2 21. g5 Ne8 22. c3 $19) ({Better is} 20... Nc5 $19 {aiming for ...Nxb3.} 21. Nc1 Kh8) 21. Nxd4 $14 {[%emt 0:00:34]} Qc7 {[%emt 0:07:09] ( -> ...Qg3+)} 22. Nxc2 $4 {[%emt 0:14:24][%mdl 8192]} (22. Rf2 $14 {stays ahead.} e3 23. Qxe3) 22... Qg3+ $19 {[%emt 0:01:47]} 23. Kh1 {[%emt 0:00:05]} e3+ $1 {[%emt 0:00:56]} 24. Rf3 {[%emt 0:00:47]} Bxf3+ {[%emt 0:00:47]} 25. Bxf3 {[%emt 0:00:08]} Qxf3+ {[%emt 0:00:19]} 26. Kg1 {[%emt 0:00:11]} e2 {[%emt 0:04:30]} (26... Qg3+ $1 $19 {is more deadly.} 27. Kh1 e2 28. Qg5+ Kh8) 27. Nc3 $2 {[%emt 0:02:17]} (27. Nde3 $17) 27... Re8 {[%emt 0:02:57]} 28. Re1 {[%emt 0:07:14]} (28. Qh4 {only move.}) 28... Ne4 $2 {[%emt 0:11:55]} (28... Qd3 $19 29. Rc1 Qxc2 $3 {[%mdl 512]} 30. Rxc2 e1=Q+ 31. Kg2 Ne4) 29. Rxe2 $11 {[%emt 0:02:33] White wants to play Qe3. The board is on fire.} Qg3+ {[%emt 0:01:26]} 30. Rg2 {[%emt 0:00:30]} Qd3 {[%emt 0:00:30]} 31. Nxe4 $40 {[%emt 0:01:29][%mdl 128] Black needs to defend precisely.} Rxe4 {[%emt 0:00:28]} 32. Qd2 {[%emt 0:04:36]} (32. Qg5+ {is more complex.} Kf8 33. Qd2 Ne5 34. Qxd3 Nxd3 35. b3) 32... Nc5 {[%emt 0:02:33]} 33. Qxd3 {[%emt 0:01:05]} Nxd3 {[%emt 0:00:02][%mdl 4096] Endgame KRN-KRN} 34. b3 {[%emt 0:00:29]} Nc5 {[%emt 0:01:04]} 35. Rg3 {[%emt 0:00:38]} Re2 {[%emt 0:00:50]} 36. Nd4 {[%emt 0:00:43]} Rd2 {[%emt 0:01:21]} 37. Nc6 {[%emt 0:00:27]} f6 {[%emt 0:02:09]} 38. Re3 {[%emt 0:00:26]} Rd6 {[%emt 0:00:58]} 39. Nb4 {[%emt 0:00:48] White is more active.} (39. Na7 $16) 39... a5 {[%emt 0:00:51]} 40. Nc2 {[%emt 0:00:23]} Kf7 {[%emt 0:00:56]} (40... Rd1+ $11 {remains equal.} 41. Kf2 Rd2+ 42. Re2 Rd3) 41. Kf1 {[%emt 0:00:33]} (41. Na3 $16) 41... Rd1+ {[%emt 0:00:35]} (41... Kg7 $11) 42. Ke2 $16 {[%emt 0:00:17]} Rb1 {[%emt 0:00:48]} 43. Nd4 {[%emt 0:00:19]} Rb2+ {[%emt 0:00:21]} 44. Kd1 {[%emt 0:00:51]} Rh2 {[%emt 0:03:14]} 45. Ne2 {[%emt 0:00:22]} (45. Nb5 $1 $16) 45... Rh1+ {[%emt 0:01:07]} (45... h5 $1 $14) 46. Kc2 {[%emt 0:00:06]} Rf1 {[%emt 0:00:38] [#]} (46... Nd7 $142 47. Nf4 Ne5) 47. Kc3 $1 $18 {[%emt 0:00:20]} h5 {[%emt 0:00:49]} 48. Kc4 {[%emt 0:00:55]} ({Weaker is} 48. gxh5 Rxf5 49. h6 Rh5 $11) 48... hxg4 {[%emt 0:00:21]} 49. hxg4 {[%emt 0:00:02]} Rb1 {[%emt 0:00:28] [#]} 50. Ng3 $1 {[%emt 0:01:20] Threatens to win with Ne4.} Nd7 {[%emt 0:00:45]} 51. Kb5 {[%emt 0:00:21]} Nc5 {[%emt 0:00:27]} 52. Kxb6 {[%emt 0:00:37]} Nxb3 {[%emt 0:00:28]} 53. Ne4 {[%emt 0:00:21] Black must now prevent Kc6.} Nd4+ $2 {[%emt 0:00:45]} (53... Nd2+ {keeps fighting.} 54. Kc5 Nxe4+ 55. Rxe4 Kg7) 54. Kc5 {[%emt 0:00:42]} ({Inferior is} 54. Kxa5 Nc6+ 55. Ka6 Nb8+ 56. Ka7 Nc6+ 57. Ka6 Nb8+ 58. Ka7 Nc6+ 59. Ka6 $11) 54... Rb4 $2 {[%emt 0:00:59]} (54... Rd1 55. Nc3 Rd2) 55. Nd6+ {[%emt 0:00:10]} Kg7 {[%emt 0:01:10]} 56. Re4 {[%emt 0:00:51]} Nb3+ {[%emt 0:00:45]} 57. Kd5 {[%emt 0:00:11] Threatening mate with Rxb4.} Rb6 {[%emt 0:01:04]} 58. Re7+ {[%emt 0:00:35]} Kg8 {[%emt 0:00:34]} 59. Rb7 {[%emt 0:00:24]} Rxb7 {[%emt 0:00:44]} 60. Nxb7 {[%emt 0:00:04] Strongly threatening Ke6. KN-KN} Kg7 {[%emt 0:00:15]} 61. Kc4 {[%emt 0:00:12]} Nd2+ {[%emt 0:00:12]} 62. Kd3 {[%emt 0:00:14]} Nf3 {[%emt 0:00:18]} 63. Nxa5 {[%emt 0:00:18] Intending Nc4 and mate.} Ne5+ {[%emt 0:00:10]} 64. Ke4 {[%emt 0:00:38] White threatens Nb3 and mate.} Nd7 {[%emt 0:00:43]} 65. Nb7 {[%emt 0:00:20] White mates.} Kf7 {[%emt 0:00:15]} 66. a5 {[%emt 0:00:15][%cal Ba4a5,Ba5a6][%mdl 32]} Nb8 {[%emt 0:00:33]} 67. Nc5 {[%emt 0:00:33]} Ke7 {[%emt 0:00:02]} 68. Kd5 {[%emt 0:00:42]} Kd8 {[%emt 0:00:44]} 69. a6 {[%emt 0:00:08] Quite a comeback for White.  Weighted Error Value: White=0.44/Black=0.56} 1-0